bitfinex-derivatives/quotes_ETHF0:USTF0_20250730
["timestamp","ask_amount","ask_price","bid_price","bid_amount"]
[1753878562561,0.52994,3774.2,3774.0,3.8175]
[1753878562842,0.52995,3774.0,3773.9,0.00901513]
[1753878563349,0.52995,3774.0,3773.9,3.82651513]
[1753878564440,0.52995,3774.0,3773.9,6.30731513]
[1753878564640,0.52995,3774.0,3773.9,6.83728513]
[1753878564843,0.52994,3774.2,3774.1,2.4808]
[1753878565040,3.73767,3774.6,3774.5,1.488]
[1753878565248,3.73767,3774.6,3774.5,6.2983]
[1753878565642,4.29597,3774.6,3774.5,3.9172]
[1753878565848,4.29597,3774.6,3774.5,6.2983]
[1753878566352,1.08603,3774.2,3774.1,3.842474]
[1753878566555,1.08823,3774.2,3774.1,8.752474]
[1753878566744,4.29097,3774.6,3774.5,2.4808]
[1753878566949,3.73767,3774.6,3774.5,6.2983]
[1753878568042,4.29097,3774.6,3774.5,6.2983]
[1753878568348,0.52992,3774.3,3774.2,2.91103]
[1753878568548,0.52992,3774.3,3774.2,6.82823]
[1753878568754,0.52992,3774.3,3774.2,6.2983]
[1753878568953,0.52991,3774.4,3774.2,2.4808]
[1753878569247,0.53069,3774.5,3774.4,6.2983]
[1753878570048,1.08319,3774.5,3774.4,6.2983]
[1753878570448,1.08319,3774.5,3774.4,10.140774]
[1753878570647,3.2078,3775.2,3774.5,2.4292]
[1753878570843,0.52976,3775.4,3775.3,2.4808]
[1753878571049,0.52976,3775.4,3775.3,6.2983]
[1753878571452,1.08806,3775.4,3775.3,2.3865]
[1753878571653,1.08536,3775.4,3775.3,6.2983]
[1753878572852,1.08666,3775.4,3775.3,6.2983]
[1753878573050,0.52983,3774.9,3774.8,9.5061]
[1753878573748,0.52982,3775.0,3774.8,6.21844]
[1753878573949,0.52982,3775.0,3774.9,6.2983]
[1753878574445,0.53061,3775.1,3775.0,0.52981]
[1753878574646,0.0008,3775.1,3775.0,6.82811]
[1753878574962,0.52979,3775.2,3775.1,6.2983]
[1753878575856,0.53056,3775.4,3775.3,2.4808]
[1753878576057,0.53056,3775.4,3775.3,6.2983]
[1753878576354,3.2078,3775.6,3775.3,2.4808]
[1753878576558,3.73754,3775.6,3775.5,6.2983]
[1753878577459,0.7525,3775.9,3775.8,2.4808]
[1753878577656,1.28299,3775.9,3775.8,6.2983]
[1753878578248,0.2,3775.9,3775.8,6.2983]
[1753878578758,0.7533,3775.9,3775.8,6.2983]
[1753878579159,0.2,3775.9,3775.8,6.2983]
[1753878579454,0.7583,3775.9,3775.8,2.4292]
[1753878579661,0.0014,3775.6,3775.1,0.8985]
[1753878579957,3.2101,3775.5,3775.4,1.502]
[1753878580157,3.2101,3775.5,3775.4,3.0327]
[1753878580451,3.2115,3775.5,3775.4,3.0327]
[1753878580656,3.2078,3775.5,3775.4,3.0327]
[1753878580858,3.2115,3775.5,3775.4,3.0327]
[1753878582154,0.0023,3775.5,3775.4,6.2983]
[1753878582355,0.0037,3775.5,3775.4,4.91]
[1753878582557,0.0037,3775.5,3775.4,6.2983]
[1753878582860,0.8905248,3775.5,3775.4,6.2983]
[1753878583255,0.8905248,3775.5,3775.4,4.91]
[1753878583461,0.8905248,3775.5,3775.4,1.502]
[1753878583759,0.8905248,3775.5,3775.4,6.2983]
[1753878585160,0.8868248,3775.5,3775.4,6.2983]
[1753878585355,0.0023,3775.5,3775.4,10.140774]
[1753878585653,0.0037,3775.5,3775.4,10.140774]
[1753878586357,0.0037,3775.5,3775.4,8.752474]
[1753878586561,0.0037,3775.5,3775.4,4.740974]
[1753878586861,0.0037,3775.5,3775.4,3.842474]
[1753878587560,5.0037,3775.5,3775.4,3.842474]
[1753878587761,5.89076069,3775.5,3775.4,3.842474]
[1753878588457,0.89076069,3775.5,3775.4,3.842474]
[1753878589761,0.88706069,3775.5,3775.4,10.140774]
[1753878590551,0.2014,3775.9,3775.7,1.5307]
[1753878590552,0.2,3775.9,3775.7,1.5307]
[1753878590758,0.2,3775.9,3775.8,6.2983]
[1753878590958,0.44836591,3775.9,3775.8,9.5061]
[1753878593962,0.2,3775.9,3775.8,9.5061]
[1753878595466,0.2,3775.9,3775.8,13.348574]
[1753878598163,0.2,3775.9,3775.8,4.740974]
[1753878598571,0.2,3775.9,3775.8,3.842474]
[1753878598864,0.2,3775.9,3775.8,8.640674]
[1753878599169,0.2,3775.9,3775.8,10.029574]
[1753878601060,0.2,3775.9,3775.8,8.640674]
[1753878601265,6.0869136,3775.9,3775.8,3.842474]
[1753878601467,11.63210359,3775.9,3775.8,3.842474]
[1753878601967,6.63210359,3775.9,3775.8,3.842474]
[1753878602167,1.33528301,3775.9,3775.8,6.227874]
[1753878602468,1.33528301,3775.9,3775.8,4.776274]
[1753878602677,1.0869136,3775.9,3775.8,8.640674]
[1753878602868,1.08692213,3775.9,3775.8,10.029574]
[1753878603077,0.2,3775.9,3775.8,10.029574]
[1753878603969,0.94814809,3777.3,3775.8,12.050274]
[1753878604170,0.24830454,3777.2,3776.5,0.9338]
[1753878604374,0.24830454,3777.1,3776.4,3.2078]
[1753878604670,0.018,3777.3,3776.8,3.2078]
[1753878604871,0.018,3777.3,3777.2,3.2078]
[1753878605074,0.018,3777.3,3776.6,3.2078]
[1753878605479,0.018,3777.3,3777.2,3.842474]
[1753878605778,0.018,3777.3,3777.2,3.370274]
[1753878605972,11.44761279,3777.3,3777.2,3.370274]
[1753878606778,0.5295,3777.2,3775.8,3.2078]
[1753878606976,3.2078,3776.7,3775.8,3.2078]
[1753878607178,1.13405444,3776.6,3775.8,3.2078]
[1753878607380,5.54312694,3776.5,3775.8,3.2078]
[1753878607680,5.29485736,3776.6,3775.8,3.2078]
[1753878607872,8.50265736,3776.7,3775.8,3.2078]
[1753878608077,0.018,3777.3,3775.8,3.2078]
[1753878608280,1.13390212,3777.2,3776.2,3.2078]
[1753878608479,0.018,3777.3,3776.2,3.2078]
[1753878608679,0.018,3777.3,3776.6,3.2078]
[1753878608880,0.018,3777.3,3777.2,3.84247399]
[1753878609272,0.90342952,3777.3,3777.2,3.84247399]
[1753878609672,1.15169872,3777.3,3777.2,3.84247399]
[1753878609877,0.2662692,3777.3,3777.2,3.84247399]
[1753878610882,0.018,3777.3,3777.2,3.84247399]
[1753878611073,10.31285736,3777.3,3777.2,3.84247399]
[1753878611274,6.44603425,3777.3,3777.2,3.84247399]
[1753878611683,0.018,3777.3,3777.2,3.84247399]
[1753878612181,0.26628152,3777.3,3777.2,3.84247399]
[1753878613579,0.26628152,3777.3,3777.2,7.05027399]
[1753878613580,0.018,3777.3,3777.2,7.05027399]
[1753878614381,0.2,3777.9,3777.2,7.05027399]
[1753878614586,0.24824768,3777.8,3777.2,7.05027399]
[1753878614786,0.24824768,3777.7,3777.2,7.05027399]
[1753878614987,0.24824768,3777.6,3777.2,7.05027399]
[1753878615177,0.2,3777.9,3777.2,7.05027399]
[1753878615383,0.24824536,3777.8,3777.6,3.2078]
[1753878615584,0.24824536,3777.7,3777.6,3.2078]
[1753878615986,0.2,3777.9,3777.6,3.2078]
[1753878616181,3.2078,3779.7,3777.6,13.50209671]
[1753878616382,0.93014809,3779.8,3778.8,3.2078]
[1753878616593,0.52923,3779.1,3778.1,3.2078]
[1753878616792,0.52929,3778.7,3778.1,3.2078]
[1753878617296,3.2078,3778.8,3778.1,3.2078]
[1753878617893,0.88264681,3778.7,3778.1,3.2078]
[1753878618095,0.52929,3778.7,3778.1,3.2078]
[1753878618297,0.52937,3778.1,3777.2,3.84247399]
[1753878618500,3.2078,3777.8,3777.2,3.84247399]
[1753878621391,3.2078,3777.3,3777.2,3.84247399]
[1753878621699,8.50230694,3777.3,3777.2,3.39877399]
[1753878621897,13.50230694,3777.3,3777.2,3.39877399]
[1753878622298,13.50230694,3777.3,3777.2,2.77252399]
[1753878622499,13.50230694,3777.3,3777.2,2.18625399]
[1753878622895,4.9653393,3780.5,3777.2,2.18625399]
[1753878622896,1.39292917,3778.5,3777.2,11.78975135]
[1753878623202,6.49218058,3779.8,3778.4,3.2078]
[1753878623203,1.39292917,3779.8,3778.4,3.2078]
[1753878623395,1.59292917,3779.9,3779.1,3.2078]
[1753878623599,2.26161025,3779.8,3779.1,3.2078]
[1753878623793,0.87951108,3779.2,3779.1,3.2078]
[1753878624199,0.87951108,3779.2,3778.5,3.2078]
[1753878624200,5.87951108,3779.2,3778.5,3.2078]
[1753878624404,0.86868108,3779.1,3778.5,3.2078]
[1753878624597,0.86868108,3779.0,3778.5,3.2078]
[1753878624797,0.86868108,3778.9,3778.5,3.2078]
[1753878625092,0.86868108,3778.8,3777.7,3.2078]
[1753878625298,3.2078,3778.3,3777.5,3.2078]
[1753878625498,0.86868108,3778.2,3777.5,3.2078]
[1753878625698,0.86868108,3778.1,3777.6,5.29275554]
[1753878625899,0.86868108,3778.0,3777.6,5.29275554]
[1753878626103,0.86868108,3777.9,3777.6,5.29275554]
[1753878626302,0.52941,3777.8,3777.0,3.2078]
[1753878626604,3.2078,3777.9,3777.0,3.2078]
[1753878626903,5.29401643,3777.8,3777.0,3.2078]
[1753878627104,8.50181643,3777.9,3777.0,3.2078]
[1753878627500,3.95602018,3777.8,3777.0,2.62005]
[1753878627804,0.52953,3777.0,3776.0,3.2078]
[1753878628009,0.52948,3777.3,3776.4,3.2078]
[1753878628505,0.24831337,3777.2,3776.4,3.2078]
[1753878628706,9.03192711,3777.3,3776.4,3.2078]
[1753878628908,0.52955,3776.8,3776.0,3.2078]
[1753878629201,5.29541813,3776.7,3776.0,3.2078]
[1753878629607,0.52955,3776.8,3776.0,3.2078]
[1753878630004,5.29541813,3776.6,3776.0,3.2078]
[1753878630206,40.8,3776.5,3776.0,3.2078]
[1753878630606,40.8,3776.5,3775.4,3.2078]
[1753878630607,3.2078,3776.3,3775.4,3.2078]
[1753878631605,0.52964,3776.2,3775.4,3.2078]
[1753878631908,5.29654003,3776.1,3775.4,3.2078]
[1753878632211,3.2078,3775.9,3775.8,2.36e-06]
[1753878632411,0.5297,3775.8,3774.6,3.2078]
[1753878632601,0.52976,3775.4,3774.2,3.22634673]
[1753878632801,3.2078,3775.5,3774.2,3.22634673]
[1753878633007,5.29661016,3775.4,3774.2,3.22634673]
[1753878634405,44.0078,3775.5,3774.2,3.22634673]
[1753878634807,49.30609394,3775.5,3774.2,3.22634673]
[1753878635111,4.03302333,3775.4,3774.2,3.22634673]
[1753878635508,0.52982,3774.9,3774.2,3.22634673]
[1753878635708,3.2078,3775.0,3774.2,3.22634673]
[1753878636007,5.29822377,3774.9,3774.2,3.22634673]
[1753878636209,8.50602377,3775.0,3774.2,3.22634673]
[1753878636910,3.2078,3775.0,3774.2,3.22634673]
[1753878637212,40.8,3775.5,3774.7,3.2078]
[1753878637406,3.2078,3775.4,3774.7,3.2078]
[1753878637607,0.52977,3775.3,3774.7,3.2078]
[1753878638012,0.52981,3775.0,3774.2,3.22634673]
[1753878638409,5.29857468,3775.1,3774.2,3.22634673]
[1753878638810,0.52981,3775.0,3774.2,3.22634673]
[1753878639115,3.2078,3774.9,3774.2,0.01854673]
[1753878639610,19.749,3774.8,3774.2,0.01854673]
[1753878639811,19.749,3774.8,3774.6,0.00812967]
[1753878641206,3.2078,3774.9,3774.6,0.00812967]
[1753878641407,19.751,3774.8,3774.6,0.00812967]
[1753878643014,19.752,3774.7,3774.6,0.00812967]
[1753878643312,19.751,3774.7,3774.6,0.00812967]
[1753878643808,3.2078,3775.4,3774.6,0.00812967]
[1753878644306,19.751,3775.3,3774.6,0.00812967]
[1753878644810,19.751,3775.2,3774.6,0.00812967]
[1753878645422,0.5298,3775.1,3774.6,0.00812967]
[1753878645601,5.29808341,3775.0,3774.6,0.00812967]
[1753878645806,5.29808341,3775.0,3774.5,3.2078]
[1753878646110,19.751,3774.9,3774.5,3.2078]
[1753878646309,5.29808341,3775.0,3774.5,3.2078]
[1753878646505,19.751,3774.8,3774.5,3.2078]
[1753878646907,5.29808341,3775.0,3774.5,3.2078]
[1753878647107,19.75,3774.9,3774.5,3.2078]
[1753878647305,3.2078,3775.4,3774.5,3.2078]
[1753878647306,19.75,3774.8,3774.5,3.2078]
[1753878647607,19.75,3774.7,3774.5,3.2078]
[1753878647813,5.29850449,3774.8,3774.5,3.2078]
[1753878648116,19.75,3774.7,3774.5,3.2078]
[1753878649213,19.75,3774.6,3774.5,3.2078]
[1753878650111,1.92261917,3775.9,3774.5,3.2078]
[1753878650308,0.86036331,3775.3,3774.5,3.2078]
[1753878650511,18.91536331,3775.2,3774.5,3.2078]
[1753878650711,40.8,3775.1,3774.5,3.2078]
[1753878651713,19.749,3775.0,3774.5,3.2078]
[1753878653111,19.749,3775.0,3774.6,1.5213]
[1753878653112,2.7934,3774.9,3774.6,1.5213]
[1753878653312,19.747,3774.8,3774.6,2.8186]
[1753878653816,16.626,3774.8,3774.7,2.8186]
[1753878654412,40.8,3775.1,3774.8,1.2973]
[1753878654622,40.8,3775.1,3775.0,5.134]
[1753878654810,0.94330986,3775.7,3775.1,1.9262]
[1753878655018,20.5998963,3775.6,3775.2,1.2973]
[1753878655217,0.8548963,3775.5,3775.0,3.2078]
[1753878655421,0.8548963,3775.4,3775.2,1.9262]
[1753878655621,0.8548963,3775.3,3775.0,3.2078]
[1753878655824,40.8,3775.2,3775.0,3.2078]
[1753878656219,40.8,3775.2,3775.1,1.9262]
[1753878657120,19.744,3775.2,3775.1,1.9262]
[1753878657319,18.26032392,3775.2,3775.1,7.8623]
[1753878657519,19.743,3775.6,3775.0,3.2078]
[1753878657723,40.8,3775.5,3775.3,0.9361]
[1753878657923,0.94330986,3775.7,3775.4,3.8367]
[1753878658224,0.94330986,3775.7,3775.6,0.9361]
[1753878658425,40.8,3775.8,3775.6,0.9361]
[1753878658624,42.19292917,3775.8,3775.6,0.9361]
[1753878658826,19.742,3775.9,3775.7,1.565]
[1753878659020,22.68985602,3775.9,3775.8,4.1439]
[1753878659221,3.71,3775.8,3775.4,3.2078]
[1753878659422,2.1848,3775.5,3775.0,4.1439]
[1753878659727,20.6566,3775.4,3775.2,0.9361]
[1753878659920,0.9166,3775.3,3775.0,3.2078]
[1753878660229,19.74,3775.4,3774.8,0.9361]
[1753878660230,0.9492359,3775.2,3774.8,0.9361]
[1753878660430,3.71,3775.0,3774.8,0.9361]
[1753878660730,22.5334,3774.9,3774.8,0.9361]
[1753878661330,23.4826359,3774.9,3774.8,0.9361]
[1753878661534,24.3992359,3774.9,3774.5,3.2078]
[1753878661729,0.9166,3774.8,3774.6,0.9361]
[1753878661924,2.7934,3774.7,3774.6,0.9361]
[1753878662330,5.13385316,3774.7,3774.5,3.2078]
[1753878662630,1.42385316,3774.7,3774.5,3.8367]
[1753878662823,1.42385316,3774.7,3774.6,1.565]
[1753878663026,19.737,3774.7,3774.6,1.565]
[1753878663427,60.537,3774.7,3774.5,3.2078]
[1753878663627,0.95107123,3774.6,3774.5,3.2078]
[1753878663827,21.16355503,3774.7,3774.5,3.2078]
[1753878664122,19.737,3774.7,3774.6,1.565]
[1753878664628,21.16355503,3774.7,3774.6,1.565]
[1753878665033,23.95695503,3774.7,3774.6,0.9361]
[1753878665226,3.71,3774.6,3774.5,3.2078]
[1753878665427,4.66139792,3774.6,3774.5,3.2078]
[1753878665726,3.71,3774.6,3774.5,3.2078]
[1753878666131,3.71,3774.5,3774.2,0.95464673]
[1753878666435,3.71,3774.3,3774.2,0.01854673]
[1753878666732,1.5252,3774.3,3773.8,0.19608622]
[1753878666932,3.71,3774.1,3773.8,0.19608622]
[1753878667134,3.71,3773.9,3773.8,0.19608622]
[1753878667729,63.3264,3773.9,3773.8,0.19608622]
[1753878667929,63.3264,3773.9,3773.8,1.13218622]
[1753878668325,45.03996,3773.9,3773.8,0.19608622]
[1753878668531,64.77196,3773.9,3773.8,0.19608622]
[1753878669029,40.8,3773.9,3773.8,1.77968622]
[1753878669534,61.38866316,3773.9,3773.8,1.77968622]
[1753878670229,20.58866316,3773.9,3773.8,1.77968622]
[1753878670424,20.58966316,3773.9,3773.8,1.77968622]
[1753878671036,0.85766316,3773.9,3773.8,1.77968622]
[1753878671237,20.58866316,3773.9,3773.8,1.77968622]
[1753878671538,20.58866316,3773.9,3773.8,2.30966622]
[1753878671835,0.85766316,3773.9,3773.8,1.77968622]
[1753878672232,0.52997,3774.0,3773.9,1.5836]
[1753878672439,20.25897,3774.0,3773.9,1.5836]
[1753878672639,23.05237,3774.0,3773.9,1.5836]
[1753878673238,20.25897,3774.0,3773.9,1.5836]
[1753878673640,23.05237,3774.0,3773.9,0.9361]
[1753878674140,3.71,3773.9,3773.8,0.19608622]
[1753878674640,3.71,3773.9,3773.8,1.13218622]
[1753878674840,2.7934,3773.9,3773.8,1.13218622]
[1753878675034,2.7934,3773.9,3773.8,0.19608622]
[1753878675335,3.71,3773.9,3773.8,0.19608622]
[1753878675733,44.51,3773.9,3773.8,0.19608622]
[1753878675935,63.3194,3773.9,3773.8,1.13218622]
[1753878676138,64.236,3773.9,3773.8,0.19608622]
[1753878679045,2.05518,3773.8,3773.6,3.2078]
[1753878679241,3.71,3773.7,3773.6,3.2078]
[1753878679438,19.722,3773.7,3773.6,4.9875]
[1753878679638,22.5154,3773.7,3773.6,4.1439]
[1753878679842,63.3154,3773.7,3773.6,4.1439]
[1753878680044,64.232,3773.7,3773.6,4.1439]
[1753878680737,64.232,3773.7,3773.6,3.2078]
[1753878680946,3.32351,3772.9,3772.8,4.1439]
[1753878681145,23.04351,3772.9,3772.8,4.1439]
[1753878681545,23.90321,3772.9,3772.8,3.2078]
[1753878682045,64.70321,3772.9,3772.8,3.2078]
[1753878682241,64.70321,3772.9,3772.8,4.0667]
[1753878682443,63.84351,3772.9,3772.8,4.0667]
[1753878683447,0.53016,3772.5,3772.4,4.911]
[1753878683745,0.53022,3772.1,3772.0,0.8443]
[1753878683946,23.11732,3772.1,3772.0,0.8443]
[1753878684149,21.77562,3772.1,3772.0,0.8443]
[1753878684349,21.77562,3772.1,3772.0,1.7032]
[1753878684551,1.38995,3771.9,3771.8,0.1961902]
[1753878684750,23.97605,3771.9,3771.8,0.1961902]
[1753878685240,64.77605,3771.9,3771.8,0.1961902]
[1753878685444,61.04725,3771.9,3771.8,1.0404902]
[1753878685847,62.57565,3771.9,3771.8,1.0404902]
[1753878686651,64.77705,3771.9,3771.8,1.0739902]
[1753878686846,64.77705,3771.9,3771.8,0.1961902]
[1753878687251,40.8,3771.9,3771.8,1.8993902]
[1753878687443,19.713,3771.9,3771.8,5.1071902]
[1753878689050,0.53024,3772.0,3771.8,5.1071902]
[1753878689254,23.4428,3771.9,3771.8,3.4039902]
[1753878689552,23.4428,3771.9,3771.8,0.1961902]
[1753878690552,23.4428,3771.9,3771.8,2e-07]
[1753878691844,0.53033,3771.3,3771.2,0.01856148]
[1753878692052,23.97113,3771.3,3771.2,0.01856148]
[1753878692848,23.97113,3771.3,3771.2,0.03746148]
[1753878693048,64.77113,3771.3,3771.2,0.01856148]
[1753878693651,64.77113,3771.3,3771.2,1.48e-06]
[1753878694750,2.05886,3770.4,3770.3,4.0521]
[1753878694949,20.23846,3770.4,3770.3,4.911]
[1753878695657,20.23646,3770.4,3770.3,4.911]
[1753878695956,5.39322,3771.7,3770.9,0.53039]
[1753878696149,0.53029,3771.6,3771.5,1.6858]
[1753878696354,3.2078,3772.1,3771.7,0.8269]
[1753878696549,60.505,3772.0,3771.4,2.21762]
[1753878696749,0.53028,3771.8,3771.6,0.53029]
[1753878697050,40.8,3772.0,3771.9,1.6873]
[1753878697248,60.506,3772.0,3771.9,1.6873]
[1753878697553,4.0675,3772.6,3772.1,1.6873]
[1753878697751,0.53022,3772.1,3771.8,3.2078]
[1753878697949,19.7035,3772.0,3771.9,2.21755]
[1753878698154,0.53022,3772.2,3772.0,1.6858]
[1753878698352,19.704,3772.1,3772.0,1.6858]
[1753878698553,19.704,3772.1,3772.0,0.8269]
[1753878698754,19.704,3772.1,3772.0,1.6858]
[1753878700051,4.26004,3772.0,3771.8,4.0347]
[1753878700250,20.23025,3771.9,3771.8,4.8936]
[1753878700760,38.71319,3772.3,3772.2,1.6858]
[1753878701053,39.51009,3773.5,3772.2,3.2078]
[1753878701352,0.24860074,3773.4,3773.2,2.21586]
[1753878701546,19.94560074,3773.3,3773.2,1.6858]
[1753878702551,19.697,3773.3,3773.2,1.6858]
[1753878702953,19.93618334,3773.3,3773.2,1.6858]
[1753878703160,0.24418334,3773.3,3773.2,1.6858]
[1753878703356,20.79588334,3773.3,3773.0,3.2078]
[1753878703662,3.7298,3773.1,3773.0,3.2078]
[1753878703954,23.6650801,3773.1,3773.0,3.2078]
[1753878704958,23.4208,3773.1,3773.0,3.2078]
[1753878705757,3.7298,3773.1,3773.0,3.2078]
[1753878706755,20.21707,3773.2,3771.7,1.32568]
[1753878706756,2.91827,3772.5,3772.4,3.2078]
[1753878706948,19.687,3773.2,3772.0,4.0347]
[1753878706949,3.7298,3772.4,3772.0,4.0347]
[1753878707153,1.87192,3772.2,3772.0,4.0347]
[1753878707355,23.4138,3772.1,3772.0,3.2078]
[1753878707562,19.684,3772.1,3772.0,4.8936]
[1753878707768,19.683,3772.1,3772.0,4.8936]
[1753878708059,23.4128,3772.1,3772.0,3.2078]
[1753878708751,23.4128,3772.1,3770.9,0.8589]
[1753878708752,3.7298,3771.5,3771.4,3.2078]
[1753878709060,20.5417,3771.5,3771.4,4.8936]
[1753878709255,0.53031,3771.6,3771.4,4.8936]
[1753878709454,19.68,3771.5,3771.4,3.73812]
[1753878709759,0.8597,3772.1,3771.4,3.73812]
[1753878709760,19.68,3771.6,3771.5,0.53031]
[1753878709960,40.8,3772.2,3772.1,1.6858]
[1753878710161,60.479,3772.2,3772.1,1.6858]
[1753878710462,62.8671,3772.2,3772.1,0.8269]
[1753878710655,2.91839,3771.6,3771.5,4.0347]
[1753878711162,1.38999,3771.6,3771.5,3.2078]
[1753878711360,2.91839,3771.6,3771.5,3.2078]
[1753878711562,2.91839,3771.6,3771.5,4.034]
[1753878711952,2.3881,3771.6,3771.5,4.034]
[1753878712153,0.53028,3771.8,3771.7,0.8262]
[1753878712457,0.53028,3771.8,3771.5,3.2078]
[1753878712458,0.53029,3771.6,3771.5,3.2078]
[1753878712658,4.24289,3771.6,3771.5,3.2078]
[1753878713159,0.53036,3771.1,3771.0,3.2078]
[1753878713361,23.91696,3771.1,3771.0,3.2078]
[1753878714466,23.91696,3771.1,3770.1,0.9287]
[1753878714467,4.24302,3770.7,3770.6,3.2078]
[1753878714660,0.8887,3770.1,3770.0,4.034]
[1753878714854,0.57040622,3770.1,3770.0,5.49322]
[1753878715059,21.49759,3770.2,3770.0,4.9627]
[1753878715360,23.02539,3770.2,3770.0,4.9627]
[1753878715664,23.02539,3770.2,3770.1,0.8262]
[1753878716364,2.8239,3770.1,3770.0,3.2078]
[1753878716567,2.8239,3770.1,3769.8,0.19629428]
[1753878716765,2.8239,3769.9,3769.8,0.19629428]
[1753878716965,5.47666,3769.8,3769.2,3.2078]
[1753878717156,40.8,3769.8,3769.7,3.2078]
[1753878717358,1.32593,3771.1,3769.8,0.8262]
[1753878717661,2.4165,3770.3,3770.1,0.5305]
[1753878717861,2.4165,3770.3,3770.2,4.034]
[1753878718065,0.8887,3770.5,3770.4,1.35666]
[1753878718563,1.41915,3770.5,3770.4,0.8262]
[1753878718767,21.08715,3770.5,3770.4,0.8262]
[1753878718970,22.0845,3770.5,3770.4,0.8262]
[1753878719269,1.5278,3770.4,3770.3,0.00528456]
[1753878719464,3.7126,3770.4,3770.3,0.00528456]
[1753878719966,3.7126,3770.4,3770.3,0.83148456]
[1753878719967,20.5547,3770.4,3770.3,0.83148456]
[1753878720169,41.6887,3770.7,3770.6,0.53044]
[1753878720370,2.8239,3771.1,3770.9,0.53038]
[1753878720670,19.665,3771.3,3770.8,3.2078]
[1753878720864,0.8887,3771.2,3771.1,1.35656]
[1753878721163,0.8887,3771.6,3771.5,0.5303]
[1753878721368,0.8887,3771.6,3770.6,1.32609]
[1753878721369,1.5278,3771.5,3771.4,0.53032]
[1753878721563,4.56627789,3771.5,3771.3,0.53033]
[1753878721765,2.4165,3771.4,3771.3,0.53033]
[1753878721962,3.7126,3771.4,3771.3,0.53033]
[1753878722268,19.665,3771.4,3771.3,0.53034]
[1753878722474,20.5537,3771.4,3771.3,0.8262]
[1753878722666,1.5278,3771.8,3771.3,2.15202]
[1753878722865,0.2,3771.9,3771.8,0.53027]
[1753878723067,1.9421905,3771.9,3771.8,1.35647]
[1753878723562,2.4165,3771.6,3771.5,0.53031]
[1753878723871,4.5660905,3771.6,3771.5,0.53031]
[1753878724066,1.3838005,3771.6,3771.4,0.53032]
[1753878724271,1.5278,3771.5,3771.4,0.53032]
[1753878724471,1.5278,3771.3,3771.2,3.2078]
[1753878724668,0.8887,3770.9,3770.6,0.8262]
[1753878724877,19.66,3770.9,3770.3,4.03928456]
[1753878725174,19.66,3770.9,3770.4,0.53046]
[1753878725175,2.8239,3770.5,3770.4,0.53046]
[1753878725371,5.36859201,3770.8,3770.7,0.53041]
[1753878725573,23.49979201,3770.8,3770.7,4.56441]
[1753878725772,3.84079201,3770.8,3770.7,4.56441]
[1753878726673,4.72949201,3770.8,3770.7,4.56441]
[1753878726872,3.84079201,3770.8,3770.7,4.56441]
[1753878727568,4.72949201,3770.8,3770.7,4.56441]
[1753878728166,0.53046,3770.4,3770.3,3.21308456]
[1753878728365,23.89806,3770.4,3770.3,3.21308456]
[1753878728974,3.7126,3770.4,3770.3,3.21308456]
[1753878729164,20.5437,3770.4,3770.3,4.03928456]
[1753878729369,19.654,3770.5,3770.4,0.53046]
[1753878729572,1.41916,3770.4,3770.3,3.21308456]
[1753878729765,3.7126,3770.4,3770.3,3.21308456]
[1753878729975,3.7126,3770.4,3770.3,0.00528456]
[1753878730376,6.25729201,3770.4,3770.3,0.53576456]
[1753878730672,3.84079201,3770.4,3770.3,4.56976456]
[1753878731070,3.2078,3771.7,3771.2,0.53035]
[1753878731273,0.8887,3771.3,3771.2,0.53035]
[1753878731468,19.652,3771.6,3770.9,3.2078]
[1753878731668,2.4165,3771.3,3771.2,0.53035]
[1753878732273,2.8239,3771.2,3770.9,3.2078]
[1753878732483,2.4165,3771.0,3770.9,3.73819]
[1753878732677,1.2961,3771.8,3771.6,0.53029]
[1753878732873,22.91931957,3771.7,3771.6,0.53029]
[1753878733366,1.74251957,3771.7,3771.6,0.53029]
[1753878733572,19.848,3771.9,3771.8,0.53027]
[1753878733772,20.7367,3771.9,3771.8,0.53027]
[1753878734183,22.2645,3771.9,3771.8,0.53027]
[1753878734481,2.4165,3771.8,3771.7,0.53027]
[1753878734976,0.2,3771.9,3771.7,3.73807]
[1753878735681,0.8887,3771.8,3771.7,3.73807]
[1753878736077,4.04079201,3771.9,3771.7,3.73807]
[1753878736268,4.04079201,3771.9,3771.7,9.04057808]
[1753878737568,4.92949201,3771.9,3771.7,9.04057808]
[1753878737773,0.8887,3771.8,3771.7,3.73807]
[1753878737976,3.7126,3771.8,3771.7,3.73808]
[1753878738273,4.04079201,3771.9,3771.7,3.73808]
[1753878738274,4.04079201,3771.9,3771.7,9.04058808]
[1753878738874,2.4165,3771.8,3771.7,3.73808]
[1753878739283,3.7126,3771.8,3771.7,3.73808]
[1753878740371,7.55339201,3771.8,3771.7,3.2078]
[1753878741280,7.55339201,3771.8,3770.3,39.52345456]
[1753878741281,0.53034,3771.3,3771.2,3.2078]
[1753878741478,4.22454,3771.3,3771.2,3.2078]
[1753878742882,4.22454,3771.3,3770.3,0.00528456]
[1753878742883,2.72906,3770.4,3770.3,0.00528456]
[1753878743076,27.02526,3770.4,3770.3,0.00528456]
[1753878743486,48.19526,3770.4,3770.3,0.00528456]
[1753878743676,67.82526,3770.4,3770.3,0.00528456]
[1753878743873,44.53826,3770.4,3770.3,0.00528456]
[1753878744180,27.02526,3770.4,3770.3,0.00528456]
[1753878744579,25.69696,3770.4,3770.3,1.29338456]
[1753878744773,6.06696,3770.4,3770.3,1.29338456]
[1753878744978,27.02626,3770.4,3770.3,1.29338456]
[1753878745375,7.04859201,3770.4,3770.3,1.29338456]
[1753878745580,7.04859201,3770.4,3770.3,7.50093188]